bitfinex/quotes_SOLUSD_20260211
["timestamp","ask_amount","ask_price","bid_price","bid_amount"]
[1770824059524,12.55051582,79.678,79.611,0.46491393]
[1770824059695,4.61729252,79.674,79.611,0.46491393]
[1770824059896,0.45600677,79.673,79.611,0.46491393]
[1770824060333,5.36086188,79.672,79.611,0.46491393]
[1770824060532,0.45600677,79.663,79.583,0.46855951]
[1770824060701,0.45600677,79.645,79.583,0.46855951]
[1770824060901,0.45600677,79.64,79.583,0.46855951]
[1770824061103,0.45600677,79.638,79.583,0.46855951]
[1770824061300,0.45600677,79.633,79.57,0.46855951]
[1770824061532,0.45600677,79.628,79.57,0.46855951]
[1770824061901,0.45600677,79.626,79.556,0.46855951]
[1770824062228,207.19793051,79.634,79.556,0.46855951]
[1770824062229,0.45600677,79.615,79.556,0.46855951]
[1770824062602,34.4,79.621,79.561,0.46855951]
[1770824062812,0.45600677,79.617,79.561,0.46855951]
[1770824063443,78.36101285,79.616,79.563,0.46855951]
[1770824063618,4.61729252,79.613,79.563,0.46855951]
[1770824064512,4.61729252,79.613,79.557,12.56946029]
[1770824064513,0.45600677,79.608,79.55,0.46855951]
[1770824064705,0.45600677,79.606,79.535,0.46855951]
[1770824064912,0.45600677,79.594,79.535,0.46855951]
[1770824065207,0.45600677,79.596,79.535,0.46855951]
[1770824065411,4.61729252,79.592,79.537,0.46855951]
[1770824065628,43.97261134,79.595,79.541,0.46855951]
[1770824065808,17.18030088,79.599,79.551,0.46855951]
[1770824066014,12.56265624,79.601,79.561,0.46855951]
[1770824066208,12.56190073,79.606,79.561,0.46855951]
[1770824067303,43.9621172,79.614,79.562,12.56881425]
[1770824067509,43.9621172,79.614,79.563,0.49837457]
[1770824067708,34.42,79.615,79.571,0.49837457]
[1770824067929,12.56000059,79.618,79.581,0.49837457]
[1770824068625,43.95438789,79.628,79.581,0.49837457]
[1770824068830,43.95438789,79.628,79.562,43.99084989]
[1770824068831,0.45600677,79.623,79.563,0.49837457]
[1770824069534,0.45600677,79.618,79.565,0.49837457]
[1770824070029,43.95770012,79.622,79.571,0.49837457]
[1770824070328,34.44,79.621,79.571,0.49837457]
[1770824071326,34.44,79.621,79.581,0.49837457]
[1770824071628,12.55965837,79.62,79.583,0.49837457]
[1770824072427,34.44,79.621,79.583,0.49837457]
[1770824072627,31.3911359,79.641,79.583,0.49837457]
[1770824072826,31.39126067,79.64,79.583,0.49837457]
[1770824073019,65.85126067,79.64,79.583,0.49837457]
[1770824073224,34.46,79.64,79.591,0.49837457]
[1770824073440,47.01662601,79.64,79.593,0.49837457]
[1770824073623,0.45600677,79.67,79.611,0.49837457]
[1770824073815,34.46,79.661,79.611,0.49837457]
[1770824074329,12.55193362,79.669,79.611,0.49837457]
[1770824074330,4.61729252,79.658,79.611,0.49837457]
[1770824074529,34.46,79.66,79.611,0.49837457]
[1770824075025,5.07329929,79.659,79.611,0.49837457]
[1770824075232,34.46,79.658,79.611,0.49837457]
[1770824075434,34.91600677,79.658,79.611,0.49837457]
[1770824075630,43.93838582,79.657,79.612,12.56092046]
[1770824075936,43.93838582,79.657,79.613,0.49837457]
[1770824076114,12.55382452,79.657,79.613,0.49837457]
[1770824076713,0.45600677,79.678,79.621,0.49837457]
[1770824076919,0.45600677,79.676,79.621,0.49837457]
[1770824078138,5.07329929,79.672,79.623,0.49837457]
[1770824078341,4.61729252,79.672,79.623,0.49837457]
[1770824079118,12.55098839,79.675,79.631,0.49837457]
[1770824079523,0.45600677,79.697,79.631,0.49837457]
[1770824079838,4.61729252,79.692,79.641,0.49837457]
[1770824080051,0.45600677,79.687,79.601,0.49837457]
[1770824080253,5.81686865,79.67,79.603,0.49837457]
[1770824080423,0.45600677,79.665,79.603,0.49837457]
[1770824080732,0.45600677,79.66,79.603,0.49837457]
[1770824081338,0.45600677,79.66,79.58,20.29554789]
[1770824081339,0.45600677,79.655,79.591,0.49837457]
[1770824081637,0.45600677,79.65,79.591,0.49837457]
[1770824082218,43.94279902,79.649,79.593,0.49837457]
[1770824082440,12.55508543,79.649,79.593,0.49837457]
[1770824082646,0.45600677,79.648,79.593,0.49837457]
[1770824083551,43.94279902,79.649,79.593,0.49837457]
[1770824083731,12.55508543,79.649,79.593,0.49837457]
[1770824084342,43.94279902,79.649,79.595,0.49837457]
[1770824086533,0.45600677,79.648,79.597,0.49837457]
[1770824088052,12.55508543,79.649,79.597,0.49837457]
[1770824088264,0.45600677,79.648,79.597,0.49837457]
[1770824088434,0.45600677,79.646,79.598,12.56312972]
[1770824088636,0.45600677,79.643,79.578,0.49837457]
[1770824088958,0.45600677,79.643,79.591,0.49837457]
[1770824089143,4.61729252,79.644,79.591,0.49837457]
[1770824089343,0.45600677,79.643,79.591,0.49837457]
[1770824089920,12.5554007,79.647,79.601,0.49837457]
[1770824090647,34.58,79.649,79.603,0.46973218]
[1770824090947,34.58,79.652,79.603,0.46973218]
[1770824091244,34.58,79.651,79.603,0.46973218]
[1770824091619,0.45600677,79.647,79.603,0.46973218]
[1770824091822,4.61729252,79.648,79.578,0.46973218]
[1770824091823,0.45600677,79.642,79.578,0.46973218]
[1770824092541,0.45600677,79.64,79.579,43.98145238]
[1770824092741,43.94721311,79.641,79.58,0.46973218]
[1770824092742,5.07329929,79.638,79.58,0.46973218]
[1770824093051,0.45600677,79.637,79.58,0.46973218]
[1770824093243,0.45600677,79.637,79.58,13.00465155]
[1770824093450,0.45600677,79.637,79.581,0.46973218]
[1770824093864,0.45600677,79.637,79.523,50.29965134]
[1770824093865,0.45600677,79.627,79.543,17.56]
[1770824094157,0.45600677,79.627,79.55,13.00465155]
[1770824094337,34.56,79.636,79.546,4.61729252]
[1770824094540,4.61729252,79.638,79.58,13.00465155]
[1770824094855,43.94942049,79.637,79.581,78.82034705]
[1770824095054,12.55697728,79.637,79.581,78.82034705]
[1770824095239,12.55697728,79.637,79.591,0.46973218]
[1770824095439,31.38447697,79.658,79.601,0.46973218]
[1770824095651,34.58,79.657,79.602,0.46973218]
[1770824095957,12.55350933,79.659,79.602,0.46973218]
[1770824096339,0.45600677,79.697,79.621,0.46973218]
[1770824096560,12.54768118,79.696,79.641,0.46973218]
[1770824096855,0.45600677,79.692,79.643,0.46973218]
[1770824097038,12.54768118,79.696,79.643,0.46973218]
[1770824097234,12.54768118,79.696,79.642,12.55618894]
[1770824097235,12.54768118,79.696,79.651,0.46973218]
[1770824097435,0.45600677,79.692,79.651,0.46973218]
[1770824097647,34.58,79.691,79.629,13.02782075]
[1770824097831,0.45600677,79.687,79.63,0.46973218]
[1770824098949,0.45600677,79.677,79.618,0.46973218]
[1770824099152,5.36086188,79.681,79.618,0.46973218]
[1770824099153,0.45600677,79.672,79.618,0.46973218]
[1770824099353,4.61729252,79.668,79.62,13.00465155]
[1770824099658,34.56,79.671,79.631,0.46973218]
[1770824100333,12.54610694,79.706,79.641,0.46973218]
[1770824100533,0.1,79.71,79.671,0.46973218]
[1770824100934,0.1,79.71,79.673,0.46973218]
[1770824101539,0.1,79.71,79.681,0.46973218]
[1770824101740,12.53961011,79.748,79.701,0.46973218]
[1770824102050,31.34789975,79.751,79.701,0.46973218]
[1770824102247,6.511188,79.764,79.711,0.46973218]
[1770824102447,12.53956582,79.748,79.711,0.46973218]
[1770824102645,0.48480665,79.76,79.711,0.46973218]
[1770824102840,0.48480665,79.759,79.711,0.46973218]
[1770824103042,0.48480665,79.759,79.69,31.37127773]
[1770824103043,0.48480665,79.754,79.654,0.46973218]
[1770824103259,0.48480665,79.733,79.648,0.46973218]
[1770824103459,4.61729252,79.704,79.632,0.46973218]
[1770824103767,4.61729252,79.683,79.59,0.46973218]
[1770824104070,4.61729252,79.667,79.587,12.56485722]
[1770824104278,4.61729252,79.667,79.591,0.46973218]
[1770824104557,5.36086188,79.67,79.587,43.97702252]
[1770824104558,4.61729252,79.693,79.621,0.46973218]
[1770824104861,12.54894086,79.688,79.632,43.95218002]
[1770824105043,12.54720965,79.699,79.634,0.46973218]
[1770824105245,12.54720965,79.699,79.634,35.22973218]
[1770824105468,12.54720965,79.699,79.634,0.46973218]
[1770824105640,12.54720965,79.699,79.64,13.00465155]
[1770824105964,0.48480665,79.698,79.64,13.00465155]
[1770824106145,42.96549181,79.71,79.651,0.46973218]
[1770824106342,12.54431833,79.718,79.661,0.46973218]
[1770824106647,1e-08,79.75,79.691,0.46973218]
[1770824106845,1e-08,79.75,79.701,0.46973218]
[1770824107046,1e-08,79.75,79.711,0.46973218]
[1770824109075,1e-08,79.75,79.713,0.46973218]
[1770824109563,1e-08,79.75,79.721,0.46973218]
[1770824110160,1e-08,79.75,79.713,0.46973218]
[1770824110369,1e-08,79.75,79.721,0.46973218]
[1770824111046,1e-08,79.75,79.723,0.46973218]
[1770824111580,0.48480665,79.748,79.686,0.46973218]
[1770824111761,4.61729252,79.749,79.671,12.55161853]
[1770824111762,0.48480665,79.743,79.673,0.46973218]
[1770824112466,0.48480665,79.743,79.681,0.46973218]
[1770824112643,1e-08,79.75,79.681,0.46973218]
[1770824112644,0.48480665,79.748,79.681,0.46973218]
[1770824113149,0.48480665,79.746,79.683,0.46973218]
[1770824113476,34.42,79.749,79.701,0.46973218]
[1770824113659,0.48480665,79.747,79.701,0.46973218]
[1770824113963,1e-08,79.75,79.701,0.46973218]
[1770824114166,12.53934218,79.749,79.701,0.46973218]
[1770824114373,0.48480665,79.748,79.701,0.46973218]
[1770824114555,12.53934218,79.749,79.701,0.46973218]
[1770824114752,1e-08,79.75,79.711,0.46973218]
[1770824114962,1e-08,79.75,79.721,0.46973218]
[1770824115156,1e-08,79.75,79.722,43.90256139]
[1770824115466,1e-08,79.75,79.731,0.46973218]
[1770824115649,0.2,79.78,79.722,43.90256139]
[1770824115650,1e-08,79.77,79.741,0.46973218]
[1770824115849,12.53619827,79.769,79.73,0.46973218]
[1770824116066,1e-08,79.77,79.73,0.46973218]
[1770824116253,1e-08,79.77,79.73,13.47438373]
[1770824116448,1e-08,79.77,79.741,0.46973218]
[1770824116663,1e-08,79.78,79.761,0.46973218]
[1770824116877,0.1,79.83,79.771,0.46973218]
[1770824117048,0.1,79.83,79.79,13.00465155]
[1770824117248,0.1,79.83,79.791,13.00242018]
[1770824117465,0.1,79.83,79.792,0.46973218]
[1770824117770,0.48480665,79.829,79.764,12.5369841]
[1770824117969,0.48480665,79.829,79.736,4.61729252]
[1770824117970,0.48480665,79.816,79.754,34.76]
[1770824118174,0.48480665,79.805,79.741,0.46973218]
[1770824118360,0.48480665,79.805,79.751,0.46973218]
[1770824118551,0.48480665,79.805,79.741,0.46973218]
[1770824118751,0.48480665,79.805,79.751,0.46973218]
[1770824118987,0.48480665,79.796,79.72,12.54390366]
[1770824119156,0.48480665,79.796,79.721,0.46973218]
[1770824119365,0.48480665,79.787,79.708,0.46973218]
[1770824119578,0.48480665,79.778,79.711,0.46973218]
[1770824120477,0.48480665,79.778,79.71,47.72465155]
[1770824120478,0.48480665,79.778,79.72,13.00465155]
[1770824120657,0.48480665,79.778,79.71,34.72]
[1770824120658,0.48480665,79.778,79.721,0.45836412]
[1770824121261,0.48085056,79.773,79.723,0.45836412]
[1770824122277,0.48085056,79.773,79.71,13.00381099]
[1770824122865,0.48085056,79.773,79.711,0.45836412]
[1770824123168,0.48085056,79.759,79.684,12.5495708]
[1770824123375,4.61729252,79.739,79.661,44.39454368]
[1770824123571,38.93729252,79.738,79.661,44.39454368]
[1770824123778,38.93729252,79.738,79.67,13.00465155]
[1770824124279,38.93729252,79.738,79.68,13.00465155]
[1770824124491,38.93729252,79.738,79.661,44.39454368]
[1770824124686,4.61729252,79.718,79.661,0.45836412]
[1770824125060,39.72086188,79.737,79.67,13.00465155]
[1770824125061,4.61729252,79.734,79.67,13.00465155]
[1770824125274,17.15915097,79.733,79.672,12.55146099]
[1770824125481,17.15915097,79.733,79.672,43.93011346]
[1770824125683,0.48085056,79.732,79.673,0.45836412]
[1770824126194,43.89650458,79.733,79.681,0.45836412]
[1770824126664,0.45232843,79.734,79.681,0.45836412]
[1770824126867,0.45232843,79.748,79.691,0.45665799]
[1770824127082,50.12246168,79.805,79.672,207.09910633]
[1770824127083,5.36086188,79.742,79.672,0.45665799]
[1770824127382,0.45232843,79.731,79.651,0.45665799]
[1770824127583,4.61729252,79.727,79.653,0.45665799]
[1770824127891,5.36086188,79.73,79.628,0.45665799]
[1770824127892,0.45232843,79.696,79.628,0.45665799]
[1770824128089,0.45232843,79.691,79.641,0.45665799]
[1770824128485,34.38,79.695,79.641,0.45665799]
[1770824128668,4.61729252,79.702,79.643,0.45665799]
[1770824128979,0.45232843,79.694,79.612,0.45665799]
[1770824129195,4.61729252,79.682,79.612,0.45665799]
[1770824129492,0.45232843,79.672,79.621,0.45665799]
[1770824129869,34.38,79.681,79.631,0.45665799]
[1770824129870,12.55006232,79.681,79.631,0.45665799]
[1770824130062,0.45232843,79.68,79.631,0.45665799]
[1770824130285,5.06962095,79.678,79.631,0.45665799]
[1770824130484,12.55006232,79.681,79.631,0.45665799]
[1770824130720,0.45232843,79.677,79.616,0.45665799]
[1770824131403,0.45232843,79.677,79.615,34.74]
[1770824131404,0.45232843,79.672,79.618,0.45665799]
[1770824132414,0.45232843,79.667,79.61,0.2]
[1770824132613,0.45232843,79.667,79.611,12.56107824]
[1770824132821,5.06962095,79.673,79.621,0.45665799]
[1770824133387,4.61729252,79.669,79.612,0.45665799]
[1770824133588,34.36,79.668,79.612,0.45665799]
[1770824134219,4.61729252,79.669,79.612,0.45665799]
[1770824134509,4.61729252,79.668,79.612,0.45665799]
[1770824134693,4.61729252,79.668,79.611,12.56107824]
[1770824135110,4.61729252,79.668,79.612,0.45665799]
[1770824135299,34.38,79.671,79.621,0.45665799]
[1770824135498,4.61729252,79.668,79.623,0.45665799]
[1770824135695,50.16869222,79.731,79.641,0.45665799]
[1770824135893,39.76086188,79.73,79.651,0.45665799]
[1770824136105,4.61729252,79.715,79.651,0.45665799]
[1770824136294,4.61729252,79.707,79.637,0.45665799]
[1770824136491,4.61729252,79.707,79.641,0.45665799]
[1770824136699,4.61729252,79.702,79.635,0.45665799]
[1770824137011,4.61729252,79.697,79.635,0.45665799]
[1770824137393,4.61729252,79.697,79.63,13.00465155]
[1770824137394,4.61729252,79.689,79.637,0.45665799]
[1770824137590,4.61729252,79.687,79.637,0.45665799]
[1770824137790,17.56,79.69,79.65,13.00465155]
[1770824138006,12.54657917,79.703,79.651,0.45665799]
[1770824138211,34.42,79.709,79.661,0.45665799]
[1770824138523,34.42,79.736,79.691,0.45665799]
[1770824138700,50.15089321,79.76,79.656,4.61729252]
[1770824138701,31.3441008,79.76,79.701,0.45665799]
[1770824138900,31.3441008,79.76,79.711,0.45665799]
[1770824139397,31.3441008,79.76,79.712,12.54516258]
[1770824139617,31.3441008,79.76,79.713,0.45665799]
[1770824139994,12.94097681,79.762,79.713,0.45665799]
[1770824140299,0.40367835,79.761,79.682,0.45665799]
[1770824140495,4.61729252,79.757,79.701,0.45665799]
[1770824140912,5.02097087,79.757,79.701,0.45665799]
[1770824141229,0.40367835,79.756,79.69,13.00465155]
[1770824141393,0.40367835,79.751,79.691,0.45665799]
[1770824141593,4.61729252,79.747,79.693,0.45665799]
[1770824142131,43.88714733,79.75,79.701,0.45665799]
[1770824142304,0.40367835,79.746,79.693,34.68]
[1770824142502,0.40367835,79.746,79.694,0.45665799]
[1770824142999,4.61729252,79.747,79.694,0.45665799]
[1770824143395,4.61729252,79.747,79.7,13.00465155]
[1770824143595,34.44,79.75,79.702,0.45665799]
[1770824143893,4.61729252,79.756,79.702,0.45665799]
[1770824143894,4.61729252,79.755,79.702,0.45665799]
[1770824144099,34.44,79.754,79.711,0.45665799]
[1770824144296,12.53415557,79.782,79.721,0.45665799]
[1770824144515,34.84367835,79.781,79.721,0.45665799]
[1770824144719,50.11633964,79.815,79.712,34.7]
[1770824144720,12.53288637,79.791,79.741,0.45665799]
[1770824144897,12.53288637,79.791,79.751,0.45665799]
[1770824145094,34.44,79.803,79.751,0.45665799]
[1770824145315,12.52682185,79.829,79.771,0.45665799]
[1770824145517,12.52682185,79.829,79.781,0.45665799]
[1770824145718,4.61729252,79.826,79.783,0.45665799]
[1770824145918,0.40367835,79.825,79.776,12.53504846]
[1770824146111,0.40367835,79.825,79.771,0.45665799]
[1770824146802,0.40367835,79.82,79.759,12.53777003]
[1770824147198,0.40367835,79.82,79.761,0.45665799]
[1770824147624,4.61729252,79.821,79.772,12.53572682]
[1770824147824,12.62664752,79.83,79.791,0.45665799]
[1770824148200,0.1,79.83,79.791,0.45665799]
[1770824148525,0.1,79.83,79.801,0.45665799]
[1770824149209,4.61729252,79.85,79.802,0.45665799]
[1770824149407,12.52463893,79.843,79.802,0.45665799]
[1770824149616,12.52369905,79.849,79.803,43.85800031]
[1770824149915,12.52369905,79.849,79.804,0.45665799]
[1770824150122,12.52369905,79.849,79.811,0.45665799]
[1770824150322,34.4,79.855,79.821,0.45144355]
[1770824150500,31.75248398,79.872,79.821,0.45144355]
[1770824150501,12.52187115,79.861,79.821,0.45144355]
[1770824150818,34.38,79.874,79.821,0.45144355]
[1770824151010,34.38,79.874,79.806,0.45144355]
[1770824151011,0.47450883,79.851,79.806,0.45144355]
[1770824151215,12.52316786,79.852,79.806,0.45144355]
[1770824151713,12.52316786,79.852,79.808,0.45144355]
[1770824152019,4.61729252,79.849,79.808,0.45144355]
[1770824152218,0.47450883,79.873,79.811,0.45144355]
[1770824152419,34.36,79.873,79.821,0.45144355]
[1770824152612,31.29286884,79.891,79.841,0.45144355]
[1770824152941,0.47450883,79.901,79.826,0.45144355]
[1770824152942,0.47450883,79.878,79.826,0.45144355]
[1770824153103,12.51893488,79.879,79.826,0.45144355]
[1770824153419,31.867806,79.89,79.841,0.45144355]
[1770824153629,43.91586477,79.88,79.841,0.45144355]
[1770824153924,31.87145424,79.88,79.832,12.52620726]
[1770824154101,4.61729252,79.876,79.832,0.45144355]
[1770824154419,0.57450883,79.88,79.841,0.45144355]
[1770824155221,0.57450883,79.88,79.851,0.45144355]
[1770824155596,0.1,79.89,79.861,0.45144355]
[1770824155829,0.1,79.89,79.863,0.45144355]
[1770824156010,0.02439608,79.9,79.862,43.82559914]
[1770824156214,0.02439608,79.9,79.891,0.45144355]
[1770824156535,0.02439608,79.9,79.862,143.9983972]
[1770824156536,0.02439608,79.9,79.877,0.45144355]
[1770824157128,12.51580119,79.899,79.865,0.45144355]
[1770824157302,12.51580119,79.899,79.862,43.82559914]
[1770824157303,0.02439608,79.9,79.863,0.45144355]
[1770824157502,0.02439608,79.9,79.871,0.45144355]
[1770824157727,12.51580119,79.899,79.862,43.82559914]
[1770824157933,0.02439608,79.9,79.862,43.82559914]
[1770824158220,0.02439608,79.9,79.871,0.45144355]
[1770824158905,0.02439608,79.9,79.864,34.62]
[1770824159107,0.02439608,79.9,79.84,50.10001491]
[1770824159108,0.49890491,79.9,79.841,0.45144355]
[1770824159326,0.47450883,79.899,79.841,0.45144355]
[1770824159925,0.02439608,79.9,79.861,0.45144355]
[1770824160531,0.47450883,79.93,79.871,0.45144355]
[1770824160709,0.47450883,79.93,79.842,194.13341346]
[1770824160710,0.47450883,79.93,79.881,0.45144355]
[1770824160905,0.47450883,79.922,79.865,0.45144355]
[1770824161119,0.47450883,79.922,79.871,0.45144355]
[1770824161731,0.47450883,79.922,79.857,0.45144355]
[1770824162029,81.32217342,79.929,79.858,47.10222695]
[1770824162030,0.47450883,79.917,79.858,47.10222695]
[1770824162218,0.47450883,79.917,79.859,0.45144355]
[1770824162425,0.47450883,79.912,79.859,0.45144355]
[1770824162810,0.47450883,79.912,79.86,12.95119508]
[1770824163025,0.47450883,79.946,79.891,0.45144355]
[1770824163215,0.47450883,79.946,79.901,0.45144355]
[1770824163420,0.47450883,79.972,79.921,0.45144355]
[1770824163623,12.50640953,79.959,79.93,13.40263863]
[1770824163925,12.98091836,79.959,79.913,0.45144355]
[1770824164127,12.98091836,79.959,79.915,0.45144355]
[1770824164322,6.53804106,79.988,79.931,0.45144355]
[1770824164522,0.47450883,80.001,79.931,0.45144355]
[1770824164726,0.47450883,79.997,79.941,0.45144355]
[1770824165313,0.47450883,79.997,79.928,0.45144355]
[1770824165506,0.47450883,79.989,79.928,0.45144355]
[1770824165815,0.47450883,79.987,79.94,13.40263863]
[1770824166013,0.47450883,79.987,79.912,156.42206425]
[1770824166014,12.5013355,79.992,79.951,0.45144355]
[1770824166727,12.97584433,79.992,79.951,0.45144355]
[1770824167035,0.47450883,79.991,79.951,0.45144355]
[1770824167529,5.09180135,79.989,79.951,0.45144355]
[1770824167731,0.47450883,79.988,79.951,0.45144355]
[1770824167947,0.47450883,79.983,79.927,0.45144355]
[1770824168121,0.47450883,79.978,79.912,0.45144355]
[1770824169033,4.61729252,79.974,79.912,0.45144355]
[1770824169236,0.47450883,79.973,79.921,0.45144355]
[1770824169442,0.47450883,79.973,79.931,0.45144355]
[1770824169637,4.61729252,79.973,79.931,0.45144355]
[1770824169850,34.16,79.976,79.931,0.45144355]
[1770824170053,34.16,79.976,79.933,0.45144355]
[1770824170237,12.97761762,79.981,79.933,0.45144355]
[1770824170545,0.47450883,79.977,79.923,12.51204284]
[1770824171217,0.47450883,79.986,79.94,12.95119508]
[1770824171417,12.50143586,79.991,79.949,0.45144355]
[1770824171643,0.47450883,79.987,79.936,0.45144355]
[1770824171940,12.50078129,79.995,79.951,0.45144355]
[1770824172237,0.47450883,79.994,79.953,0.45144355]
[1770824172445,0.47450883,79.991,79.943,12.5089126]
[1770824172632,0.47450883,79.991,79.944,0.45144355]
[1770824173020,12.50078129,79.995,79.951,0.45144355]
[1770824173225,34.16,79.997,79.951,0.45144355]
[1770824173618,12.50062503,79.996,79.951,0.45144355]
[1770824174018,12.50004824,80.0,79.961,0.45144355]
[1770824174231,12.49967292,80.003,79.961,0.45144355]
[1770824174445,0.47450883,80.002,79.952,12.5075045]
[1770824174739,0.47450883,79.997,79.936,0.45144355]
[1770824174922,0.47450883,79.995,79.921,0.45144355]
[1770824175341,0.47450883,79.992,79.921,12.51235595]
[1770824175538,0.47450883,79.992,79.922,0.45144355]
[1770824175740,0.47450883,79.981,79.91,0.45144355]
[1770824175944,0.47450883,79.975,79.9,0.45144355]
[1770824176249,0.47450883,79.97,79.902,0.45144355]
[1770824177926,0.47450883,79.965,79.921,0.45144355]
[1770824178126,0.47450883,79.965,79.901,156.44359894]
[1770824178127,0.47450883,79.976,79.931,0.45144355]
[1770824178322,0.47450883,79.974,79.931,0.45144355]
[1770824178648,0.47450883,79.972,79.922,44.24414142]
[1770824178947,0.47450883,79.972,79.923,0.45144355]
[1770824179722,0.47450883,79.972,79.922,12.51219939]
[1770824179947,0.47450883,79.969,79.912,12.51376514]
[1770824180148,0.47450883,79.964,79.898,12.51595784]
[1770824180353,0.47450883,79.964,79.882,0.45144355]
[1770824180852,0.47450883,79.964,79.891,0.45073045]
[1770824181230,34.3,79.963,79.901,0.45073045]
[1770824181432,0.47665689,79.959,79.901,0.45073045]
[1770824182129,0.47665689,79.954,79.912,12.51376514]
[1770824182338,34.75665689,79.953,79.912,12.51376514]
[1770824182548,0.47665689,79.952,79.912,12.51376514]
[1770824182855,0.47665689,79.949,79.876,0.45073045]
[1770824183145,0.47665689,79.949,79.875,12.51956181]
[1770824183146,0.47665689,79.949,79.881,0.45073045]
[1770824183660,0.47665689,79.961,79.921,0.45073045]
[1770824183841,49.99033542,80.016,79.931,0.45073045]
[1770824183842,34.32,79.968,79.931,0.45073045]
[1770824184028,0.47665689,79.989,79.94,12.95119508]
[1770824184233,49.98196098,80.029,79.94,12.95119508]
[1770824184234,34.32,79.994,79.943,0.45073045]
[1770824184435,34.32,79.994,79.951,0.45073045]
[1770824184656,34.32,79.996,79.951,0.45073045]
[1770824184840,34.32,79.996,79.942,43.78174175]
[1770824184841,0.47665689,79.995,79.942,12.50906907]
[1770824185043,0.47665689,79.992,79.926,12.5115732]
[1770824185245,0.47665689,79.992,79.915,34.52]
[1770824185246,0.47665689,79.99,79.921,12.51230472]
[1770824185444,0.47665689,79.99,79.931,0.45073045]
[1770824185648,0.47665689,79.985,79.922,34.5]
[1770824185953,0.47665689,79.985,79.923,0.45073045]
[1770824186129,4.61729252,79.981,79.924,12.51188629]
[1770824186340,4.61729252,79.977,79.92,12.51248975]
[1770824186643,4.61729252,79.977,79.902,12.51532789]
[1770824186644,0.49929761,79.971,79.902,12.51532789]
[1770824186857,0.49929761,79.966,79.902,12.51532789]
[1770824187250,0.49929761,79.966,79.903,0.48162567]
[1770824187456,268.80376075,79.984,79.894,0.48162567]
[1770824187457,0.49929761,79.961,79.894,0.48162567]
[1770824187647,0.49929761,79.956,79.896,0.48162567]
[1770824187957,0.49929761,79.956,79.901,0.48162567]
[1770824188175,34.32,79.955,79.901,0.48162567]
[1770824188342,0.49929761,79.95,79.889,0.48162567]
[1770824188545,0.49929761,79.945,79.889,0.48162567]
[1770824188754,0.49929761,79.945,79.859,0.48162567]
[1770824189056,0.49929761,79.943,79.859,0.48162567]
[1770824189235,0.49929761,79.934,79.859,0.48162567]
[1770824189434,0.49929761,79.923,79.847,0.48162567]
[1770824189956,34.34,79.942,79.841,12.52489322]
[1770824189957,0.49929761,79.921,79.871,0.48162567]
[1770824190135,3.49,81.134,79.841,256.7603111]
[1770824190136,0.49929761,79.916,79.86,34.46]
[1770824190463,5.36086188,79.943,79.847,0.48162567]
[1770824190464,0.49929761,79.911,79.847,0.48162567]
[1770824190663,0.49929761,79.911,79.861,0.48162567]
[1770824190858,0.49929761,79.906,79.861,0.48162567]
[1770824191354,0.49929761,79.904,79.842,0.48162567]
[1770824191565,34.36,79.903,79.851,0.48162567]
[1770824191932,34.83929761,79.902,79.851,0.48162567]
[1770824192159,0.49929761,79.901,79.851,0.48162567]
[1770824192461,12.51564455,79.9,79.861,0.48162567]
[1770824192765,0.49929761,79.899,79.847,12.52383756]
[1770824192949,0.49929761,79.899,79.848,0.48162567]
[1770824193148,0.49929761,79.896,79.84,0.2]
[1770824193352,0.49929761,79.896,79.841,12.52489322]
[1770824193556,0.49929761,79.896,79.842,0.48162567]
[1770824194252,0.49929761,79.896,79.84,0.2]
[1770824194253,0.49929761,79.891,79.84,0.2]
[1770824194459,0.49929761,79.886,79.84,0.2]
[1770824195365,0.49929761,79.881,79.84,0.2]
[1770824195666,0.49929761,79.874,79.793,0.48162567]
[1770824195969,0.49929761,79.863,79.793,0.48162567]
[1770824196345,0.49929761,79.858,79.793,0.48162567]
[1770824196551,0.49929761,79.854,79.78,0.48162567]
[1770824196739,0.49929761,79.849,79.78,0.48162567]
[1770824197366,0.49929761,79.849,79.773,12.53556967]
[1770824197559,0.49929761,79.849,79.774,0.48162567]
[1770824197741,5.36086188,79.848,79.774,0.48162567]
[1770824197966,0.49929761,79.833,79.76,0.2]
[1770824198277,0.49929761,79.823,79.762,0.48162567]
[1770824198475,0.49929761,79.823,79.771,0.48162567]
[1770824198781,0.49929761,79.821,79.771,0.48162567]
[1770824200177,34.54,79.82,79.771,0.48162567]
[1770824200361,12.52834538,79.819,79.773,0.48162567]
[1770824200561,0.49929761,79.818,79.773,0.48162567]
[1770824201385,0.49929761,79.815,79.762,0.48162567]
[1770824201587,0.49929761,79.815,79.763,0.48162567]
[1770824202387,0.49929761,79.815,79.76,0.2]
[1770824202388,0.49929761,79.813,79.765,0.48162567]
[1770824203292,12.52771757,79.823,79.771,0.48162567]
[1770824203589,0.49929761,79.818,79.76,12.73757206]
[1770824203770,0.49929761,79.818,79.761,0.48162567]